[Event "*** Titled Tuesday Blitz"]
[Site "Chess.com"]
[Date "2020.03.03"]
[Round "1"]
[White "Pechen_Yeltsina"]
[Black "karwowskikacper"]
[Result "1-0"]
[WhiteElo "2718"]
[BlackElo "2373"]
[TimeControl "180+1"]
[EndTime "13:07:03 PST"]
[Termination "Pechen_Yeltsina won on time"]

1. e4 {[%clk 0:03:00.5]} 1... c5 {[%clk 0:02:58.9]} 2. Nf3 {[%clk 0:03:00.2]}
2... e6 {[%clk 0:02:49.6]} 3. g3 {[%clk 0:02:59.8]} 3... Nc6 {[%clk 0:02:49.1]}
4. d3 {[%clk 0:02:59.8]} 4... g6 {[%clk 0:02:48.7]} 5. Bg2 {[%clk 0:02:59.5]}
5... Bg7 {[%clk 0:02:49]} 6. O-O {[%clk 0:02:59.8]} 6... Nge7 {[%clk 0:02:49.5]}
7. Re1 {[%clk 0:03:00.2]} 7... O-O {[%clk 0:02:49.3]} 8. e5 {[%clk 0:03:00]}
8... d5 {[%clk 0:02:48.3]} 9. exd6 {[%clk 0:03:00.9]} 9... Qxd6 {[%clk 0:02:48]}
10. Nbd2 {[%clk 0:03:01.1]} 10... b6 {[%clk 0:02:47.6]} 11. Nc4 {[%clk
0:03:00.7]} 11... Qd8 {[%clk 0:02:47.3]} 12. h4 {[%clk 0:02:52.6]} 12... h5
{[%clk 0:02:37.2]} 13. Bg5 {[%clk 0:02:50]} 13... Bb7 {[%clk 0:02:36.7]} 14. c3
{[%clk 0:02:42.6]} 14... Qc8 {[%clk 0:02:35.1]} 15. a4 {[%clk 0:02:40.4]} 15...
Nf5 {[%clk 0:02:31.2]} 16. Qc2 {[%clk 0:02:27.1]} 16... Qc7 {[%clk 0:02:23.4]}
17. Bf4 {[%clk 0:02:26.6]} 17... Qd7 {[%clk 0:02:18.8]} 18. a5 {[%clk
0:02:17.9]} 18... b5 {[%clk 0:02:17.3]} 19. a6 {[%clk 0:02:18.2]} 19... bxc4
{[%clk 0:02:04.5]} 20. axb7 {[%clk 0:02:17.7]} 20... Qxb7 {[%clk 0:02:05.4]} 21.
dxc4 {[%clk 0:02:18]} 21... Qb6 {[%clk 0:02:03.3]} 22. Ng5 {[%clk 0:02:13.8]}
22... Rfd8 {[%clk 0:01:47.1]} 23. Ra2 {[%clk 0:02:10.3]} 23... Rd7 {[%clk
0:01:30.9]} 24. Qa4 {[%clk 0:02:10.2]} 24... Nfe7 {[%clk 0:01:23.6]} 25. Qb5
{[%clk 0:02:04.1]} 25... Rad8 {[%clk 0:01:16.5]} 26. Ne4 {[%clk 0:01:59.3]}
26... Rd1 {[%clk 0:01:02.8]} 27. Ra1 {[%clk 0:01:58.4]} 27... Rxe1+ {[%clk
0:00:57.9]} 28. Rxe1 {[%clk 0:01:59.3]} 28... e5 {[%clk 0:00:43.9]} 29. Bg5
{[%clk 0:01:51.9]} 29... Rb8 {[%clk 0:00:37.6]} 30. Nxc5 {[%clk 0:01:46.6]}
30... Qxb5 {[%clk 0:00:36.3]} 31. cxb5 {[%clk 0:01:47.5]} 31... Rxb5 {[%clk
0:00:36.9]} 32. b4 {[%clk 0:01:47.2]} 32... Kh7 {[%clk 0:00:20.3]} 33. Rd1
{[%clk 0:01:44.1]} 33... f6 {[%clk 0:00:20.2]} 34. Be3 {[%clk 0:01:42.3]} 34...
a5 {[%clk 0:00:19.7]} 35. Bf1 {[%clk 0:01:41.1]} 35... Rb8 {[%clk 0:00:19.3]}
36. b5 {[%clk 0:01:41.4]} 36... Nd8 {[%clk 0:00:19.7]} 37. Na6 {[%clk
0:01:39.4]} 37... Rc8 {[%clk 0:00:19]} 38. b6 {[%clk 0:01:39]} 38... Nf5 {[%clk
0:00:19.4]} 39. Rd7 {[%clk 0:01:34.1]} 39... Kh8 {[%clk 0:00:11.3]} 40. Bd3
{[%clk 0:01:29.2]} 40... Nxe3 {[%clk 0:00:11.1]} 41. fxe3 {[%clk 0:01:30.1]}
41... f5 {[%clk 0:00:10.5]} 42. c4 {[%clk 0:01:28.9]} 42... e4 {[%clk
0:00:10.4]} 43. Be2 {[%clk 0:01:27.8]} 43... Be5 {[%clk 0:00:10]} 44. c5 {[%clk
0:01:26.6]} 44... Bxg3 {[%clk 0:00:08.7]} 45. Bb5 {[%clk 0:01:25.6]} 45... Bxh4
{[%clk 0:00:08.5]} 46. Rc7 {[%clk 0:01:24.5]} 46... Ra8 {[%clk 0:00:06.2]} 47.
c6 {[%clk 0:01:21.5]} 47... Bg3 {[%clk 0:00:04.5]} 48. Ra7 {[%clk 0:01:16.3]}
48... Rb8 {[%clk 0:00:01.7]} 49. c7 {[%clk 0:01:15.3]} 1-0

[Event "*** Titled Tuesday Blitz"]
[Site "Chess.com"]
[Date "2020.03.03"]
[Round "1"]
[White "FelixBlohberger"]
[Black "icychess54"]
[Result "0-1"]
[WhiteElo "2578"]
[BlackElo "2202"]
[TimeControl "180+1"]
[EndTime "13:07:05 PST"]
[Termination "icychess54 won on time"]

1. d4 {[%clk 0:02:57.9]} 1... c6 {[%clk 0:02:59.5]} 2. e4 {[%clk 0:02:57.1]}
2... d5 {[%clk 0:02:59.8]} 3. exd5 {[%clk 0:02:56.9]} 3... cxd5 {[%clk
0:02:59.2]} 4. Bd3 {[%clk 0:02:57.4]} 4... Nf6 {[%clk 0:02:59.1]} 5. c3 {[%clk
0:02:55.8]} 5... Nc6 {[%clk 0:02:59.5]} 6. Bf4 {[%clk 0:02:53.3]} 6... Bg4
{[%clk 0:02:57.8]} 7. Qb3 {[%clk 0:02:52]} 7... Qc8 {[%clk 0:02:51.2]} 8. Nd2
{[%clk 0:02:50.7]} 8... e6 {[%clk 0:02:50.5]} 9. Ngf3 {[%clk 0:02:50]} 9... Be7
{[%clk 0:02:49.8]} 10. O-O {[%clk 0:02:48.4]} 10... O-O {[%clk 0:02:48.9]} 11.
Ne5 {[%clk 0:02:48.9]} 11... Nxe5 {[%clk 0:02:45.4]} 12. dxe5 {[%clk 0:02:42]}
12... Nd7 {[%clk 0:02:45.3]} 13. Qc2 {[%clk 0:02:40.9]} 13... h6 {[%clk
0:02:28.4]} 14. h3 {[%clk 0:02:40.6]} 14... Bh5 {[%clk 0:02:27.8]} 15. Bh2
{[%clk 0:02:40.4]} 15... Nc5 {[%clk 0:02:21.8]} 16. Bh7+ {[%clk 0:02:30.2]}
16... Kh8 {[%clk 0:02:18.7]} 17. g4 {[%clk 0:02:26.7]} 17... g6 {[%clk
0:02:15.5]} 18. gxh5 {[%clk 0:02:25.4]} 18... Kxh7 {[%clk 0:02:15.9]} 19. Kh1
{[%clk 0:01:44.9]} 19... Kg7 {[%clk 0:01:45.2]} 20. Rg1 {[%clk 0:01:35.5]} 20...
g5 {[%clk 0:01:37.5]} 21. h4 {[%clk 0:01:35.5]} 21... Kh8 {[%clk 0:01:21.6]} 22.
hxg5 {[%clk 0:01:26.6]} 22... Bxg5 {[%clk 0:01:19.4]} 23. Nf3 {[%clk 0:00:52]}
23... Be7 {[%clk 0:00:58.2]} 24. Rg6 {[%clk 0:00:26.8]} 24... fxg6 {[%clk
0:00:49.9]} 25. Qxg6 {[%clk 0:00:27.7]} 25... Bg5 {[%clk 0:00:20.3]} 26. Nxg5
{[%clk 0:00:24.6]} 26... hxg5 {[%clk 0:00:19.6]} 27. Rg1 {[%clk 0:00:02.9]}
27... Rf5 {[%clk 0:00:18.5]} 28. Qh6+ {[%clk 0:00:02.1]} 28... Kg8 {[%clk
0:00:18.8]} 29. Rxg5+ {[%clk 0:00:01.1]} 29... Rxg5 {[%clk 0:00:18.8]} 30. Qxg5+
{[%clk 0:00:02]} 30... Kf7 {[%clk 0:00:18.5]} 31. Qf6+ {[%clk 0:00:02.4]} 31...
Ke8 {[%clk 0:00:18.4]} 32. b4 {[%clk 0:00:01]} 32... Ne4 {[%clk 0:00:16]} 33.
Qg6+ {[%clk 0:00:01]} 33... Kd7 {[%clk 0:00:16]} 0-1

[Event "*** Titled Tuesday Blitz"]
[Site "Chess.com"]
[Date "2020.03.03"]
[Round "1"]
[White "pedroholly22"]
[Black "mbojan"]
[Result "0-1"]
[WhiteElo "2327"]
[BlackElo "2685"]
[TimeControl "180+1"]
[EndTime "13:07:06 PST"]
[Termination "mbojan won by resignation"]

1. e4 {[%clk 0:03:00.6]} 1... c5 {[%clk 0:03:00]} 2. Nf3 {[%clk 0:02:59.9]} 2...
Nc6 {[%clk 0:03:00.3]} 3. d4 {[%clk 0:02:59.6]} 3... cxd4 {[%clk 0:03:00.7]} 4.
Nxd4 {[%clk 0:03:00.5]} 4... Nf6 {[%clk 0:03:01.2]} 5. Nc3 {[%clk 0:02:59.9]}
5... e5 {[%clk 0:03:01.3]} 6. Ndb5 {[%clk 0:02:58.8]} 6... d6 {[%clk 0:03:01.4]}
7. Nd5 {[%clk 0:02:58.3]} 7... Nxd5 {[%clk 0:02:59.3]} 8. exd5 {[%clk
0:02:59.2]} 8... Nb8 {[%clk 0:02:59.2]} 9. c4 {[%clk 0:02:58.5]} 9... Nd7 {[%clk
0:02:58.2]} 10. Bd3 {[%clk 0:02:51.6]} 10... Be7 {[%clk 0:02:55.5]} 11. O-O
{[%clk 0:02:51.2]} 11... O-O {[%clk 0:02:53.6]} 12. Rb1 {[%clk 0:02:50.9]} 12...
a6 {[%clk 0:02:53.2]} 13. Nc3 {[%clk 0:02:49.3]} 13... Bg5 {[%clk 0:02:46.8]}
14. b4 {[%clk 0:02:47.8]} 14... Bxc1 {[%clk 0:02:46.2]} 15. Rxc1 {[%clk
0:02:46.1]} 15... Qe7 {[%clk 0:02:45.5]} 16. Kh1 {[%clk 0:02:44.8]} 16... f5
{[%clk 0:02:43.8]} 17. f3 {[%clk 0:02:44.3]} 17... b6 {[%clk 0:02:38.5]} 18. a4
{[%clk 0:02:43.9]} 18... a5 {[%clk 0:02:37.6]} 19. bxa5 {[%clk 0:02:42.4]} 19...
bxa5 {[%clk 0:02:26.4]} 20. Rb1 {[%clk 0:02:38.4]} 20... Nc5 {[%clk 0:02:26.2]}
21. Bc2 {[%clk 0:02:33.3]} 21... Bd7 {[%clk 0:02:23.6]} 22. Rb6 {[%clk 0:02:31]}
22... Rfb8 {[%clk 0:02:22]} 23. Rxb8+ {[%clk 0:02:21.7]} 23... Rxb8 {[%clk
0:02:22.9]} 24. Nb5 {[%clk 0:02:19.7]} 24... Bxb5 {[%clk 0:02:19.1]} 25. axb5
{[%clk 0:02:19]} 25... g6 {[%clk 0:02:18.4]} 26. Qd2 {[%clk 0:02:18.9]} 26...
Qc7 {[%clk 0:02:08.1]} 27. Ra1 {[%clk 0:02:18.9]} 27... Ra8 {[%clk 0:02:07.9]}
28. Qg5 {[%clk 0:02:09.5]} 28... Kf7 {[%clk 0:01:40.2]} 29. Ra3 {[%clk
0:01:54.9]} 29... Qe7 {[%clk 0:01:28.5]} 30. Qd2 {[%clk 0:01:52.7]} 30... a4
{[%clk 0:01:24.8]} 31. Qb4 {[%clk 0:01:51.7]} 31... Qa7 {[%clk 0:01:23.9]} 32.
b6 {[%clk 0:01:51.7]} 32... Qa5 {[%clk 0:01:22.8]} 33. Qxa5 {[%clk 0:01:44.5]}
33... Rxa5 {[%clk 0:01:23.7]} 34. Bxa4 {[%clk 0:01:31.3]} 34... Ke7 {[%clk
0:01:07.4]} 35. Ra2 {[%clk 0:01:26.2]} 35... Kd8 {[%clk 0:00:52.1]} 36. b7
{[%clk 0:01:24.7]} 36... Nxb7 {[%clk 0:00:48.3]} 37. h4 {[%clk 0:01:12.1]} 37...
Nc5 {[%clk 0:00:44.7]} 38. Bb3 {[%clk 0:01:10.3]} 38... Nxb3 {[%clk 0:00:44.9]}
39. Rb2 {[%clk 0:01:10.2]} 39... Nc5 {[%clk 0:00:44.7]} 40. Rb8+ {[%clk
0:01:06.5]} 40... Ke7 {[%clk 0:00:44.8]} 41. Rh8 {[%clk 0:01:07.4]} 41... Ra4
{[%clk 0:00:41.9]} 42. Rxh7+ {[%clk 0:01:07.5]} 42... Kf6 {[%clk 0:00:42.4]} 43.
h5 {[%clk 0:01:07.6]} 43... Rxc4 {[%clk 0:00:42.1]} 44. Rh6 {[%clk 0:01:07.1]}
44... Rh4+ {[%clk 0:00:41.4]} 0-1

[Event "*** Titled Tuesday Blitz"]
[Site "Chess.com"]
[Date "2020.03.03"]
[Round "1"]
[White "Abdimalik_Abdisalimov"]
[Black "elohunter1999"]
[Result "1-0"]
[WhiteElo "2834"]
[BlackElo "2437"]
[TimeControl "180+1"]
[EndTime "13:07:08 PST"]
[Termination "Abdimalik_Abdisalimov won by resignation"]

1. Nf3 {[%clk 0:02:59]} 1... d5 {[%clk 0:02:58.5]} 2. d4 {[%clk 0:02:55.6]} 2...
Nf6 {[%clk 0:02:57.6]} 3. c4 {[%clk 0:02:53.7]} 3... e6 {[%clk 0:02:57.6]} 4. g3
{[%clk 0:02:53.1]} 4... dxc4 {[%clk 0:02:57.8]} 5. Bg2 {[%clk 0:02:52.7]} 5...
Bb4+ {[%clk 0:02:58.4]} 6. Bd2 {[%clk 0:02:49.4]} 6... a5 {[%clk 0:02:58.8]} 7.
O-O {[%clk 0:02:48.2]} 7... O-O {[%clk 0:02:57.6]} 8. Qc2 {[%clk 0:02:45.4]}
8... Bxd2 {[%clk 0:02:56.3]} 9. Nbxd2 {[%clk 0:02:43.3]} 9... b5 {[%clk
0:02:54.2]} 10. a4 {[%clk 0:02:42.7]} 10... c6 {[%clk 0:02:54.2]} 11. e3 {[%clk
0:02:42.5]} 11... Bb7 {[%clk 0:02:50.9]} 12. Ne5 {[%clk 0:02:42.1]} 12... Nd5
{[%clk 0:02:50.2]} 13. b3 {[%clk 0:02:36.1]} 13... cxb3 {[%clk 0:02:47.3]} 14.
Nxb3 {[%clk 0:02:35]} 14... Nd7 {[%clk 0:02:26.2]} 15. Nxd7 {[%clk 0:02:32]}
15... Qxd7 {[%clk 0:02:25.8]} 16. axb5 {[%clk 0:02:32.9]} 16... cxb5 {[%clk
0:02:24.6]} 17. Nxa5 {[%clk 0:02:33.1]} 17... Nb4 {[%clk 0:02:21.1]} 18. Qb3
{[%clk 0:02:16.5]} 18... Bxg2 {[%clk 0:02:17.5]} 19. Kxg2 {[%clk 0:02:17.4]}
19... Qd5+ {[%clk 0:01:52.4]} 20. Qxd5 {[%clk 0:02:17.2]} 20... Nxd5 {[%clk
0:01:53.3]} 21. Nc6 {[%clk 0:02:15.8]} 21... f5 {[%clk 0:01:50]} 22. Rab1 {[%clk
0:02:13.1]} 22... Rfc8 {[%clk 0:01:45.8]} 23. Nb4 {[%clk 0:02:12.9]} 23... Nxb4
{[%clk 0:01:38.6]} 24. Rxb4 {[%clk 0:02:13.8]} 24... Rc2 {[%clk 0:01:25.9]} 25.
Rxb5 {[%clk 0:02:13.2]} 25... Kf7 {[%clk 0:01:24]} 26. g4 {[%clk 0:02:07.4]}
26... fxg4 {[%clk 0:01:22.4]} 27. Rg5 {[%clk 0:02:07.2]} 27... Ra3 {[%clk
0:01:16.3]} 28. Kg3 {[%clk 0:02:04.4]} 28... Rd2 {[%clk 0:01:03.5]} 29. Rxg4
{[%clk 0:02:03.9]} 29... Kf6 {[%clk 0:00:56.2]} 30. h4 {[%clk 0:02:02.7]} 30...
g6 {[%clk 0:00:52.3]} 31. Rc1 {[%clk 0:02:00.9]} 31... Ra7 {[%clk 0:00:41.5]}
32. Rc6 {[%clk 0:01:59.9]} 32... Re7 {[%clk 0:00:40.4]} 33. Rf4+ {[%clk
0:01:58.8]} 33... Kg7 {[%clk 0:00:40.6]} 34. Kf3 {[%clk 0:01:57.9]} 34... Ra2
{[%clk 0:00:38.1]} 35. Ke4 {[%clk 0:01:56.3]} 35... Ra5 {[%clk 0:00:37.1]} 36.
Rg4 {[%clk 0:01:43]} 36... h5 {[%clk 0:00:31.6]} 37. Rg1 {[%clk 0:01:39.5]}
37... Rf5 {[%clk 0:00:30]} 38. f4 {[%clk 0:01:39.2]} 38... Ra5 {[%clk
0:00:29.4]} 39. Rg5 {[%clk 0:01:37.8]} 39... Raa7 {[%clk 0:00:25.4]} 40. Ke5
{[%clk 0:01:33.3]} 40... Ra5+ {[%clk 0:00:24.7]} 41. Kd6 {[%clk 0:01:32.3]}
41... Rxg5 {[%clk 0:00:19.7]} 42. fxg5 {[%clk 0:01:23.9]} 42... Re8 {[%clk
0:00:19.2]} 43. Rc7+ {[%clk 0:01:19.3]} 43... Kf8 {[%clk 0:00:18.7]} 44. e4
{[%clk 0:01:18.9]} 44... Kg8 {[%clk 0:00:17.1]} 45. Re7 {[%clk 0:01:16.3]} 45...
Rd8+ {[%clk 0:00:16.6]} 46. Ke5 {[%clk 0:01:16.5]} 46... Kf8 {[%clk 0:00:16.8]}
47. Rxe6 {[%clk 0:01:16.7]} 47... Kf7 {[%clk 0:00:17.7]} 48. d5 {[%clk
0:01:16.6]} 48... Kg7 {[%clk 0:00:18.6]} 49. d6 {[%clk 0:01:16.4]} 49... Ra8
{[%clk 0:00:19.5]} 50. Re7+ {[%clk 0:01:16.5]} 50... Kf8 {[%clk 0:00:19]} 51.
Kf6 {[%clk 0:01:16.9]} 51... Ra6 {[%clk 0:00:19.6]} 52. e5 {[%clk 0:01:17]}
52... Ra5 {[%clk 0:00:18]} 53. d7 {[%clk 0:01:15.9]} 53... Ra8 {[%clk
0:00:18.9]} 54. e6 {[%clk 0:01:14.5]} 54... Rd8 {[%clk 0:00:18]} 55. Rf7+ {[%clk
0:01:13.5]} 55... Kg8 {[%clk 0:00:18.4]} 56. e7 {[%clk 0:01:13.8]} 1-0

[Event "*** Titled Tuesday Blitz"]
[Site "Chess.com"]
[Date "2020.03.03"]
[Round "1"]
[White "MiroVlasenko"]
[Black "shanemelaughcm"]
[Result "1-0"]
[WhiteElo "2635"]
[BlackElo "2266"]
[TimeControl "180+1"]
[EndTime "13:07:11 PST"]
[Termination "MiroVlasenko won by resignation"]

1. e4 {[%clk 0:03:00.9]} 1... d6 {[%clk 0:02:59.2]} 2. d4 {[%clk 0:02:59]} 2...
Nf6 {[%clk 0:02:59.3]} 3. Nc3 {[%clk 0:02:59.5]} 3... Nbd7 {[%clk 0:02:59.6]} 4.
f4 {[%clk 0:02:58.3]} 4... e5 {[%clk 0:02:59.9]} 5. Nf3 {[%clk 0:02:56.9]} 5...
exd4 {[%clk 0:03:00.5]} 6. Nxd4 {[%clk 0:02:56.8]} 6... c6 {[%clk 0:03:00.3]} 7.
Bc4 {[%clk 0:02:54.6]} 7... d5 {[%clk 0:02:24.7]} 8. exd5 {[%clk 0:02:45.8]}
8... cxd5 {[%clk 0:01:46.7]} 9. Bxd5 {[%clk 0:02:32.1]} 9... Nxd5 {[%clk
0:01:46.9]} 10. Nxd5 {[%clk 0:02:31.8]} 10... Qa5+ {[%clk 0:01:38.9]} 11. Nc3
{[%clk 0:02:31.7]} 11... Bc5 {[%clk 0:01:23.4]} 12. Nb3 {[%clk 0:02:23.1]} 12...
Qc7 {[%clk 0:01:18.5]} 13. Nd5 {[%clk 0:02:14.3]} 13... Qd6 {[%clk 0:01:11.2]}
14. Nxc5 {[%clk 0:02:10.9]} 14... Nxc5 {[%clk 0:01:06.9]} 15. b4 {[%clk
0:02:00.7]} 15... Qe6+ {[%clk 0:00:51.1]} 16. Kf1 {[%clk 0:01:41.4]} 16... Na6
{[%clk 0:00:48.8]} 17. b5 {[%clk 0:01:35.6]} 17... O-O {[%clk 0:00:47.9]} 18.
bxa6 {[%clk 0:01:34.2]} 18... Rd8 {[%clk 0:00:47.9]} 19. c4 {[%clk 0:01:33.5]}
19... b5 {[%clk 0:00:40.8]} 20. Qe2 {[%clk 0:01:16.7]} 20... Qxe2+ {[%clk
0:00:11.5]} 21. Kxe2 {[%clk 0:01:15.7]} 21... Bxa6 {[%clk 0:00:12.1]} 22. Nc7
{[%clk 0:01:13.9]} 22... bxc4 {[%clk 0:00:08.6]} 23. Nxa8 {[%clk 0:01:10.9]}
23... c3+ {[%clk 0:00:08.3]} 24. Kf2 {[%clk 0:01:10.2]} 24... Rxa8 {[%clk
0:00:08.9]} 25. Be3 {[%clk 0:01:09.9]} 25... Bd3 {[%clk 0:00:07.2]} 26. Rhd1
{[%clk 0:01:08.4]} 26... Be4 {[%clk 0:00:07]} 27. Rd7 {[%clk 0:01:07.5]} 27...
f5 {[%clk 0:00:07.1]} 28. Rxa7 {[%clk 0:01:06.4]} 28... Rb8 {[%clk 0:00:06.9]}
29. Bd4 {[%clk 0:01:01.1]} 29... Rb2+ {[%clk 0:00:07.1]} 30. Ke3 {[%clk
0:01:00.5]} 30... Rc2 {[%clk 0:00:05.6]} 31. Rxg7+ {[%clk 0:00:58.2]} 31... Kf8
{[%clk 0:00:05.9]} 32. a4 {[%clk 0:00:57.5]} 32... Rd2 {[%clk 0:00:03.3]} 33.
Be5 {[%clk 0:00:53.5]} 33... Rd3+ {[%clk 0:00:02.3]} 34. Ke2 {[%clk 0:00:53.6]}
34... c2 {[%clk 0:00:02.7]} 35. Rc1 {[%clk 0:00:52.3]} 35... Rd5 {[%clk
0:00:02.8]} 36. Rc7 {[%clk 0:00:51.5]} 36... Ra5 {[%clk 0:00:02.7]} 37. Ra1
{[%clk 0:00:49.1]} 37... Rxa4 {[%clk 0:00:01.7]} 38. Rxa4 {[%clk 0:00:48.2]}
38... Ke8 {[%clk 0:00:01.5]} 39. Rxe4 {[%clk 0:00:47.2]} 39... Kd8 {[%clk
0:00:02.2]} 40. Rxc2 {[%clk 0:00:46.5]} 40... fxe4 {[%clk 0:00:03.1]} 41. Rc7
{[%clk 0:00:45.8]} 41... Ke8 {[%clk 0:00:04]} 42. Ke3 {[%clk 0:00:46]} 1-0

[Event "*** Titled Tuesday Blitz"]
[Site "Chess.com"]
[Date "2020.03.03"]
[Round "1"]
[White "DoHoChess"]
[Black "HanSchut"]
[Result "1-0"]
[WhiteElo "2653"]
[BlackElo "2308"]
[TimeControl "180+1"]
[EndTime "13:07:14 PST"]
[Termination "DoHoChess won on time"]

1. d4 {[%clk 0:03:00.7]} 1... Nf6 {[%clk 0:02:59.6]} 2. Nf3 {[%clk 0:03:00.8]}
2... g6 {[%clk 0:02:59.9]} 3. g3 {[%clk 0:03:01]} 3... Bg7 {[%clk 0:03:00.2]} 4.
Bg2 {[%clk 0:03:01.3]} 4... O-O {[%clk 0:03:00.2]} 5. O-O {[%clk 0:03:01.3]}
5... d5 {[%clk 0:03:00.8]} 6. c4 {[%clk 0:03:01.3]} 6... dxc4 {[%clk 0:03:01.7]}
7. Na3 {[%clk 0:03:01]} 7... c6 {[%clk 0:03:01.9]} 8. Nxc4 {[%clk 0:03:00.8]}
8... Nbd7 {[%clk 0:02:58.8]} 9. b3 {[%clk 0:02:55]} 9... Nb6 {[%clk 0:02:58.6]}
10. Bb2 {[%clk 0:02:54.7]} 10... Nxc4 {[%clk 0:02:58.1]} 11. bxc4 {[%clk
0:02:55]} 11... Ne4 {[%clk 0:02:55.2]} 12. Qc2 {[%clk 0:02:39.5]} 12... Nd6
{[%clk 0:02:38]} 13. e4 {[%clk 0:02:39.5]} 13... Rb8 {[%clk 0:02:15.8]} 14. Rfd1
{[%clk 0:02:35.3]} 14... Qa5 {[%clk 0:01:56.7]} 15. h3 {[%clk 0:02:33.8]} 15...
Qa6 {[%clk 0:01:54.7]} 16. Bf1 {[%clk 0:02:29]} 16... b5 {[%clk 0:01:37.8]} 17.
cxb5 {[%clk 0:02:28.4]} 17... cxb5 {[%clk 0:01:37.9]} 18. Nd2 {[%clk 0:01:55.6]}
18... Qb7 {[%clk 0:01:27.2]} 19. d5 {[%clk 0:01:54.5]} 19... Bxb2 {[%clk
0:01:21.2]} 20. Qxb2 {[%clk 0:01:55.4]} 20... Bd7 {[%clk 0:00:58.8]} 21. e5
{[%clk 0:01:52.7]} 21... Nc4 {[%clk 0:00:58.7]} 22. Nxc4 {[%clk 0:01:51.7]}
22... bxc4 {[%clk 0:00:59.6]} 23. Qxb7 {[%clk 0:01:52.3]} 23... Rxb7 {[%clk
0:01:00.1]} 24. Bxc4 {[%clk 0:01:53.2]} 24... Bxh3 {[%clk 0:00:59.7]} 25. Rac1
{[%clk 0:01:42]} 25... Bg4 {[%clk 0:00:57.4]} 26. Rd4 {[%clk 0:01:40.5]} 26...
h5 {[%clk 0:00:50.2]} 27. Bb3 {[%clk 0:01:39.6]} 27... Rd8 {[%clk 0:00:43.4]}
28. Kg2 {[%clk 0:01:33.6]} 28... Kf8 {[%clk 0:00:38.7]} 29. f3 {[%clk
0:01:33.6]} 29... Bd7 {[%clk 0:00:33.9]} 30. Rc5 {[%clk 0:01:31.6]} 30... a6
{[%clk 0:00:31.3]} 31. Rc3 {[%clk 0:01:24.4]} 31... Rc8 {[%clk 0:00:21.7]} 32.
Rxc8+ {[%clk 0:01:23.2]} 32... Bxc8 {[%clk 0:00:22.6]} 33. Rc4 {[%clk
0:01:23.2]} 33... Bd7 {[%clk 0:00:22]} 34. Kf2 {[%clk 0:01:19.6]} 34... Bb5
{[%clk 0:00:20]} 35. Rc8+ {[%clk 0:01:18.8]} 35... Kg7 {[%clk 0:00:20.6]} 36.
Ke3 {[%clk 0:01:15.6]} 36... Bd7 {[%clk 0:00:18.9]} 37. Ra8 {[%clk 0:01:12.8]}
37... Bb5 {[%clk 0:00:18.4]} 38. Rc8 {[%clk 0:01:09.4]} 38... Bd7 {[%clk
0:00:18.1]} 39. Rc1 {[%clk 0:01:09.4]} 39... Bb5 {[%clk 0:00:18.3]} 40. Kd4
{[%clk 0:01:09.3]} 40... Kf8 {[%clk 0:00:16.5]} 41. Rc8+ {[%clk 0:01:08.4]}
41... Kg7 {[%clk 0:00:16.5]} 42. d6 {[%clk 0:01:08.8]} 42... exd6 {[%clk
0:00:16.4]} 43. exd6 {[%clk 0:01:09.7]} 43... Bd7 {[%clk 0:00:15.3]} 44. Rc7
{[%clk 0:01:08.3]} 44... Rxc7 {[%clk 0:00:09.2]} 45. dxc7 {[%clk 0:01:08.6]}
45... g5 {[%clk 0:00:08.3]} 46. Bd5 {[%clk 0:01:08.5]} 46... h4 {[%clk
0:00:07.4]} 47. gxh4 {[%clk 0:01:08.8]} 47... gxh4 {[%clk 0:00:08.3]} 48. Ke3
{[%clk 0:01:08.7]} 48... Kf6 {[%clk 0:00:07.3]} 49. Bb7 {[%clk 0:01:08.7]} 49...
Ke5 {[%clk 0:00:05.8]} 50. c8=Q {[%clk 0:01:08.1]} 50... Bxc8 {[%clk 0:00:06.2]}
51. Bxc8 {[%clk 0:01:09]} 51... f5 {[%clk 0:00:06.4]} 52. f4+ {[%clk 0:01:09.4]}
52... Kd5 {[%clk 0:00:06.3]} 53. Bxf5 {[%clk 0:01:08.9]} 1-0

[Event "*** Titled Tuesday Blitz"]
[Site "Chess.com"]
[Date "2020.03.03"]
[Round "1"]
[White "chessdjw"]
[Black "NoGalloNoParty"]
[Result "1-0"]
[WhiteElo "2636"]
[BlackElo "2271"]
[TimeControl "180+1"]
[EndTime "13:07:15 PST"]
[Termination "chessdjw won by resignation"]

1. d4 {[%clk 0:03:00.9]} 1... Nf6 {[%clk 0:02:57.4]} 2. c4 {[%clk 0:03:01]} 2...
g6 {[%clk 0:02:55.5]} 3. Nc3 {[%clk 0:02:59.9]} 3... d5 {[%clk 0:02:55.1]} 4.
cxd5 {[%clk 0:02:54.1]} 4... Nxd5 {[%clk 0:02:56]} 5. Bd2 {[%clk 0:02:53.9]}
5... Nxc3 {[%clk 0:02:53.9]} 6. Bxc3 {[%clk 0:02:52.6]} 6... Bg7 {[%clk
0:02:54.5]} 7. Qd2 {[%clk 0:02:50.8]} 7... O-O {[%clk 0:02:34.7]} 8. h4 {[%clk
0:02:50.6]} 8... c5 {[%clk 0:01:56.9]} 9. d5 {[%clk 0:02:50.5]} 9... e6 {[%clk
0:01:47.8]} 10. d6 {[%clk 0:02:33.2]} 10... e5 {[%clk 0:01:39.8]} 11. h5 {[%clk
0:02:31.8]} 11... Nc6 {[%clk 0:01:37.9]} 12. e3 {[%clk 0:02:31.7]} 12... Be6
{[%clk 0:01:36]} 13. Nf3 {[%clk 0:02:17.5]} 13... Qd7 {[%clk 0:01:22]} 14. Bb5
{[%clk 0:02:14.1]} 14... Rfd8 {[%clk 0:01:12.3]} 15. Nxe5 {[%clk 0:02:06.9]}
15... Qxd6 {[%clk 0:01:11.3]} 16. Qxd6 {[%clk 0:01:54.7]} 16... Rxd6 {[%clk
0:01:10.5]} 17. Bxc6 {[%clk 0:01:37]} 17... bxc6 {[%clk 0:01:04.4]} 18. h6
{[%clk 0:01:37.2]} 18... Bf6 {[%clk 0:00:57.3]} 19. O-O {[%clk 0:01:07.4]} 19...
Bg5 {[%clk 0:00:50.8]} 20. b4 {[%clk 0:00:40.7]} 20... cxb4 {[%clk 0:00:44.8]}
21. Bxb4 {[%clk 0:00:41.6]} 21... Rd5 {[%clk 0:00:40.6]} 22. Nxc6 {[%clk
0:00:40.8]} 22... Rb5 {[%clk 0:00:34.8]} 23. Ne7+ {[%clk 0:00:37]} 23... Kh8
{[%clk 0:00:25.8]} 24. Bc3+ {[%clk 0:00:35.3]} 24... f6 {[%clk 0:00:22.5]} 25.
Rfd1 {[%clk 0:00:31.5]} 25... Rb7 {[%clk 0:00:19.7]} 26. f4 {[%clk 0:00:28.4]}
26... Rxe7 {[%clk 0:00:15.6]} 27. fxg5 {[%clk 0:00:27.6]} 27... Kg8 {[%clk
0:00:15.7]} 28. gxf6 {[%clk 0:00:25.3]} 28... Rd7 {[%clk 0:00:15.4]} 29. Rxd7
{[%clk 0:00:24.4]} 29... Bxd7 {[%clk 0:00:15.6]} 30. Rb1 {[%clk 0:00:24.6]}
30... Rc8 {[%clk 0:00:15.2]} 31. Bd4 {[%clk 0:00:23.6]} 31... Rc7 {[%clk
0:00:15]} 32. Rb8+ {[%clk 0:00:22.9]} 32... Kf7 {[%clk 0:00:14.6]} 33. Rh8
{[%clk 0:00:23.5]} 33... Ke6 {[%clk 0:00:12.8]} 34. Rxh7 {[%clk 0:00:23.2]}
34... Rc1+ {[%clk 0:00:12.9]} 35. Kh2 {[%clk 0:00:22.8]} 35... Bc6 {[%clk
0:00:13.2]} 36. Re7+ {[%clk 0:00:21.8]} 36... Kf5 {[%clk 0:00:13.3]} 37. f7
{[%clk 0:00:21.7]} 1-0